bitfinex/quotes_SOLUSD_20251207
["timestamp","ask_amount","ask_price","bid_price","bid_amount"]
[1765090751671,7.50589842,133.23,133.2,0.7]
[1765090751843,8.21589842,133.23,133.2,0.7]
[1765090758771,16.45589842,133.23,133.2,0.7]
[1765090761176,8.95,133.23,133.2,8.20750379]
[1765090761351,8.24,133.23,133.2,7.50750379]
[1765090761554,8.24,133.23,133.21,0.71]
[1765090762772,8.24,133.23,133.21,8.21672135]
[1765090763472,8.96,133.23,133.21,0.71]
[1765090778158,8.96,133.23,133.19,26.27749326]
[1765090778368,8.24,133.23,133.2,0.71]
[1765090778575,8.96,133.23,133.2,0.71]
[1765090781790,0.72,133.23,133.2,8.21738386]
[1765090782089,0.72,133.23,133.21,0.71]
[1765090782284,0.72,133.23,133.2,7.50738386]
[1765090782513,0.72,133.23,133.2,8.21738386]
[1765090783396,18.76942209,133.22,133.2,8.21738386]
[1765090789102,18.76942209,133.22,133.19,26.27749326]
[1765090789301,19.48942209,133.22,133.2,0.71]
[1765090792593,27.72942209,133.22,133.2,0.71]
[1765090793502,27.72942209,133.22,133.19,7.50807117]
[1765090793681,3.44481528,133.2,133.16,8.21964435]
[1765090793874,11.68481528,133.19,133.16,8.21964435]
[1765090794074,11.68481528,133.19,133.16,0.71]
[1765090794277,4.16481528,133.18,133.16,0.71]
[1765090794603,25.99527192,133.18,133.16,0.71]
[1765090794803,22.55045664,133.18,133.16,0.71]
[1765090798392,0.72,133.17,133.15,7.51014589]
[1765090798697,25.99527192,133.18,133.15,8.22014589]
[1765090798901,26.71527192,133.18,133.15,8.22014589]
[1765090799213,26.71527192,133.18,133.16,0.71]
[1765090800282,12.40481528,133.17,133.14,0.71]
[1765090800509,12.40481528,133.17,133.13,8.22126129]
[1765090800781,12.40481528,133.17,133.14,4.15481528]
[1765090800782,22.55554302,133.17,133.14,4.15481528]
[1765090801003,8.24,133.18,133.14,4.15481528]
[1765090801316,8.24,133.18,133.15,0.71]
[1765090801317,8.96,133.18,133.15,0.71]
[1765090801696,31.51215185,133.18,133.15,0.71]
[1765090801901,0.72,133.17,133.15,0.71]
[1765090802421,0.72,133.17,133.13,0.71]
[1765090802422,11.68481528,133.16,133.13,0.71]
[1765090803021,19.91666346,133.16,133.13,0.71]
[1765090803400,15.75184818,133.16,133.13,8.22132046]
[1765090803704,8.24,133.17,133.14,10.9556774]
[1765090803919,27.01128437,133.17,133.14,11.6656774]
[1765090804130,27.01128437,133.17,133.15,0.71]
[1765090804418,27.01128437,133.17,133.15,8.22029496]
[1765090804724,8.24,133.17,133.15,8.22029496]
[1765090804928,8.24,133.17,133.16,0.71]
[1765090805717,8.24,133.17,133.15,8.22029496]
[1765090806119,8.24,133.17,133.16,0.71]
[1765090806320,8.24,133.17,133.15,8.22029496]
[1765090806503,8.24,133.17,133.16,0.71]
[1765090806708,8.24,133.17,133.15,8.22029496]
[1765090807221,8.24,133.17,133.15,7.51029496]
[1765090807524,8.24,133.17,133.16,0.71]
[1765090809221,8.24,133.17,133.15,8.22029496]
[1765090811040,8.24,133.17,133.15,0.71]
[1765090812730,4.16481528,133.16,133.13,8.2212751]
[1765090813409,0.72,133.15,133.13,8.2212751]
[1765090813930,0.72,133.15,133.13,0.71]
[1765090814309,23.27554302,133.15,133.13,0.71]
[1765090814508,8.22978722,133.16,133.13,0.71]
[1765090814826,7.51183535,133.16,133.13,8.22143327]
[1765090815229,7.51183535,133.16,133.14,0.71]
[1765090820532,7.51183535,133.16,133.14,8.22086876]
[1765090820741,8.96,133.17,133.14,8.22086876]
[1765090821036,17.92,133.17,133.15,0.66]
[1765090823834,9.68,133.17,133.15,0.66]
[1765090824037,17.92,133.17,133.15,0.66]
[1765090824416,8.24,133.17,133.15,8.17019297]
[1765090825043,8.95,133.17,133.15,8.17019297]
[1765090826221,8.24,133.17,133.15,7.51019297]
[1765090826417,8.24,133.17,133.16,0.66]
[1765090826617,8.96,133.18,133.16,0.66]
[1765090826819,12.39481528,133.19,133.16,0.66]
[1765090827029,24.79963056,133.19,133.16,0.66]
[1765090827222,21.35481528,133.19,133.16,0.66]
[1765090827423,24.08963056,133.19,133.16,0.66]
[1765090827622,0.71,133.18,133.16,0.66]
[1765090827823,0.71,133.18,133.16,8.16964118]
[1765090829615,24.79963056,133.19,133.16,8.16964118]
[1765090831543,21.35481528,133.19,133.16,8.16964118]
[1765090831716,24.79963056,133.19,133.16,8.16964118]
[1765090832617,12.40481528,133.19,133.17,0.66]
[1765090832939,104.3,133.2,133.17,0.66]
[1765090833141,30.787067,133.21,133.17,23.207067]
[1765090833538,31.497067,133.21,133.18,0.66]
[1765090834343,33.70253369,133.21,133.18,8.16826001]
[1765090834541,31.497067,133.21,133.18,8.16826001]
[1765090834742,31.497067,133.21,133.19,0.66]
[1765090834938,33.70253369,133.21,133.18,8.16826001]
[1765090835116,31.497067,133.21,133.18,8.16826001]
[1765090835320,33.70253369,133.21,133.18,8.16826001]
[1765090835926,0.71,133.2,133.17,8.16919876]
[1765090836126,32.99253369,133.21,133.17,8.16919876]
[1765090836326,33.70253369,133.21,133.18,0.66]
[1765090837945,33.70253369,133.21,133.18,8.16844675]
[1765090842046,33.70253369,133.21,133.16,41.95974682]
[1765090842047,0.71,133.2,133.17,7.50919876]
[1765090842238,0.71,133.2,133.17,8.16919876]
[1765090843441,2.20546669,133.19,133.17,7.50919876]
[1765090843835,0.71,133.18,133.17,7.50919876]
[1765090844031,0.71,133.18,133.16,26.28416941]
[1765090844238,0.71,133.18,133.16,26.94416941]
[1765090845239,2.91546669,133.2,133.17,0.66]
[1765090845537,0.71,133.2,133.17,0.66]
[1765090848554,0.71,133.2,133.17,8.16888137]
[1765090850644,0.71,133.2,133.16,26.28416941]
[1765090850965,0.71,133.2,133.18,0.7]
[1765090851137,8.24,133.21,133.18,0.7]
[1765090851864,8.95,133.21,133.18,0.7]
[1765090852042,8.24,133.21,133.18,0.7]
[1765090852240,0.71,133.2,133.18,0.7]
[1765090852649,0.71,133.2,133.17,7.50872347]
[1765090852852,0.71,133.2,133.17,8.20872347]
[1765090853159,0.71,133.2,133.18,8.2084882]
[1765090853365,0.71,133.2,133.18,7.5084882]
[1765090853657,10.42306135,133.2,133.16,8.20954944]
[1765090854161,0.71,133.19,133.16,8.20954944]
[1765090854373,2.91546669,133.19,133.16,8.20954944]
[1765090855148,0.71,133.18,133.14,26.98773281]
[1765090855453,2.91546669,133.18,133.14,26.98773281]
[1765090855855,0.71,133.17,133.14,26.98773281]
[1765090856167,0.71,133.19,133.15,2.90546669]
[1765090856558,0.71,133.19,133.16,0.7]
[1765090856749,2.20546669,133.21,133.16,0.7]
[1765090856951,8.24,133.2,133.16,2.90546669]
[1765090857253,8.24,133.2,133.17,7.50919876]
[1765090857459,8.24,133.2,133.17,8.20919876]
[1765090857661,8.24,133.2,133.18,0.7]
[1765090858340,8.24,133.2,133.18,8.20819206]
[1765090859069,8.24,133.2,133.19,0.67]
[1765090859247,122.9621255,133.22,133.19,0.67]
[1765090859754,115.45546669,133.22,133.19,8.17804073]
[1765090859954,114.74546669,133.22,133.19,8.17804073]
[1765090860152,0.67,133.21,133.19,8.17804073]
[1765090863457,115.41546669,133.22,133.19,8.17804073]
[1765090863770,112.54,133.22,133.2,0.67]
[1765090864482,104.3,133.22,133.2,0.67]
[1765090866869,104.97,133.22,133.2,8.17731654]
[1765090867249,104.3,133.22,133.2,8.17731654]
[1765090867970,104.3,133.22,133.21,0.67]
[1765090868572,11.11546669,133.23,133.19,7.50807117]
[1765090868759,11.11546669,133.23,133.2,0.67]
[1765090869068,11.11546669,133.23,133.2,8.17729348]
[1765090869379,0.67,133.22,133.2,8.17729348]
[1765090870251,10.44546669,133.23,133.2,8.17729348]
[1765090870473,11.11546669,133.23,133.2,8.17729348]
[1765090870778,11.11546669,133.23,133.2,0.67]
[1765090872170,11.11546669,133.23,133.2,8.17737751]
[1765090874075,8.24,133.23,133.19,7.50785274]
[1765090874370,2.20546669,133.21,133.19,7.50785274]
[1765090874774,2.87546669,133.21,133.19,7.50785274]
[1765090874969,2.87546669,133.21,133.18,8.17843785]
[1765090875149,2.87546669,133.2,133.18,8.17843785]
[1765090875554,15.74600861,133.23,133.18,8.17843785]
[1765090875759,2.20546669,133.2,133.18,8.17843785]
[1765090876352,2.20546669,133.2,133.18,7.50843785]
[1765090876353,2.87546669,133.2,133.18,7.50843785]
[1765090881970,2.87546669,133.2,133.18,0.66]
[1765090886782,2.88546669,133.19,133.15,8.17032669]
[1765090886984,2.20546669,133.18,133.15,8.17032669]
[1765090887203,2.88546669,133.18,133.15,8.17032669]
[1765090887489,0.68,133.17,133.15,8.17032669]
[1765090887866,2.88546669,133.17,133.15,8.17032669]
[1765090888488,2.88546669,133.17,133.14,0.66]
[1765090889867,0.68,133.17,133.15,7.51032669]
[1765090892386,0.68,133.17,133.15,0.66]
[1765090893887,0.68,133.17,133.14,8.17039772]
[1765090894188,0.68,133.17,133.14,7.51039772]
[1765090894512,3.44840286,133.16,133.13,7.51136332]
[1765090894661,0.68,133.15,133.13,8.17136332]
[1765090894860,4.12840286,133.15,133.13,7.51136332]
[1765090895112,4.12840286,133.15,133.12,7.51197592]
[1765090895386,0.68,133.14,133.12,7.51197592]
[1765090895686,4.12840286,133.15,133.12,8.17197592]
[1765090901187,20.43726686,133.15,133.12,8.17197592]
[1765090902084,16.988864,133.15,133.12,8.17197592]
[1765090903895,24.49920679,133.15,133.12,0.66]
[1765090905671,27.94760965,133.15,133.12,0.66]
[1765090908102,24.49920679,133.15,133.12,0.66]
[1765090910378,27.94760965,133.15,133.12,0.66]
[1765090910683,24.49920679,133.15,133.12,0.66]
[1765090912003,23.81920679,133.15,133.12,0.66]
[1765090912308,0.66,133.14,133.11,0.66]
[1765090912604,8.9,133.14,133.11,0.66]
[1765090913297,0.66,133.13,133.11,0.66]
[1765090913894,15.75095875,133.14,133.11,0.66]
[1765090914101,16.41095875,133.14,133.11,0.66]
[1765090914988,0.66,133.13,133.11,0.66]
[1765090917213,8.17151006,133.13,133.09,11.16194704]
[1765090917411,8.17151006,133.13,133.1,0.66]
[1765090919614,10.95991292,133.13,133.1,0.66]
[1765090919795,12.40840286,133.12,133.09,0.2]
[1765090920005,12.40840286,133.12,133.09,0.87]
[1765090920218,0.72,133.11,133.09,0.2]
[1765090920601,0.72,133.11,133.09,0.87]
[1765090924395,0.72,133.11,133.09,0.2]
[1765090924591,11.68098899,133.11,133.09,0.2]
[1765090924987,0.72,133.1,133.09,0.2]
[1765090926922,8.96,133.1,133.09,0.2]
[1765090928324,12.40840286,133.1,133.09,0.2]
[1765090928724,8.96,133.1,133.09,0.2]
[1765090929523,12.40840286,133.1,133.09,0.2]
[1765090930221,28.73149578,133.1,133.09,0.2]
[1765090934836,31.7407115,133.1,133.09,0.2]
[1765090937709,48.0495755,133.1,133.09,0.2]
[1765090942538,31.7407115,133.1,133.09,0.2]
[1765090945636,113.80994492,133.09,133.07,0.2]
[1765090945817,12.38840286,133.08,133.07,0.2]
[1765090946223,24.20846931,133.08,133.06,0.2]
[1765090946452,111.89680572,133.07,133.06,0.2]
[1765090946823,114.90715379,133.07,133.06,0.2]
[1765090947217,123.71709871,133.07,133.06,0.2]
[1765090947447,123.71709871,133.07,133.05,0.2]
[1765090947627,36.23267344,133.06,133.05,0.2]
[1765090948141,39.24324808,133.06,133.05,0.2]
[1765090950433,43.90479014,133.06,133.05,0.88]
[1765090950745,44.34261836,133.06,133.05,0.88]
[1765090953444,7.51540658,133.06,133.05,0.88]
[1765090953644,15.77540658,133.06,133.05,0.88]
[1765090956622,130.33416631,133.07,133.05,0.88]
[1765090956822,139.14411123,133.07,133.06,0.68]
[1765090957124,147.40411123,133.07,133.06,0.68]
[1765090957731,24.568864,133.07,133.06,0.68]
[1765090958052,8.26,133.09,133.06,0.68]
[1765090958439,36.76847401,133.09,133.06,0.68]
[1765090958622,2.21026131,133.08,133.06,0.68]
[1765090958824,15.77484181,133.07,133.06,0.68]
[1765090959949,17.98510312,133.07,133.06,0.68]
[1765090961541,17.98510312,133.07,133.05,0.2]
[1765090961747,17.98510312,133.07,133.05,0.88]
[1765090962346,17.98510312,133.07,133.06,0.68]
[1765090965650,18.68510312,133.07,133.05,0.2]
[1765090965826,18.68510312,133.07,133.05,0.88]
[1765090966846,17.98510312,133.07,133.05,0.88]
[1765090967655,15.77484181,133.07,133.05,0.2]
[1765090967851,8.26,133.07,133.06,0.68]
[1765090968961,9.72419852,133.09,133.06,0.68]
[1765090969252,8.26,133.07,133.06,0.68]
[1765090973653,8.26,133.07,133.06,8.19540658]
[1765090974664,8.26,133.07,133.06,0.68]
[1765090980362,33.74897933,133.1,133.06,8.19540658]
[1765090980572,8.26,133.09,133.06,8.19540658]
[1765090980776,24.02518386,133.1,133.07,0.67]
[1765090980942,24.568864,133.1,133.07,0.67]
[1765090981449,34.29242865,133.1,133.07,0.67]
[1765090981662,0.72,133.09,133.07,0.67]
[1765090981863,8.26,133.08,133.07,0.67]
[1765090983171,8.26,133.08,133.06,0.67]
[1765090983746,18.70454488,133.08,133.06,0.67]
[1765090985380,17.98454488,133.08,133.06,0.67]
[1765090986073,8.26,133.08,133.06,0.67]
[1765090987467,8.26,133.08,133.06,8.18532775]
[1765090987968,8.26,133.08,133.07,0.67]
[1765090988672,8.98,133.08,133.06,7.51532775]
[1765090988969,8.98,133.08,133.06,8.18532775]
[1765090989171,8.26,133.08,133.06,8.18532775]
[1765090989548,8.26,133.08,133.07,0.67]
[1765090989967,8.23374306,133.09,133.07,0.67]
[1765090990172,8.26,133.08,133.07,0.67]
[1765090991673,8.26,133.09,133.07,8.18478032]
[1765090991882,8.26,133.09,133.07,0.67]
[1765090992376,8.26,133.09,133.06,7.51518256]
[1765090992568,8.26,133.09,133.08,0.67]
[1765090993273,8.98,133.09,133.06,8.18518256]
[1765090993463,8.98,133.09,133.07,0.67]
[1765090995781,8.26,133.09,133.07,0.67]
[1765090998182,0.72,133.08,133.05,8.3857664]
[1765090998663,0.72,133.08,133.06,0.67]
[1765090998978,18.70401044,133.09,133.06,0.67]
[1765091002180,0.71,133.08,133.05,7.7157664]
[1765091002362,0.71,133.08,133.05,8.4157664]
[1765091002560,2.21026131,133.06,133.05,0.2]
[1765091002974,2.92026131,133.06,133.05,0.2]
[1765091003765,10.43566789,133.06,133.05,0.2]
[1765091006085,8.22540658,133.06,133.05,0.2]
[1765091006293,7.51540658,133.06,133.05,0.2]
[1765091006466,15.93030761,133.08,133.05,0.9]
[1765091006665,8.26,133.07,133.05,0.9]
[1765091006867,10.47026131,133.07,133.05,0.2]
[1765091007067,10.47026131,133.07,133.05,0.9]
[1765091007577,11.18026131,133.07,133.05,0.9]
[1765091013499,8.97,133.07,133.05,0.9]
[1765091014793,8.26,133.07,133.05,7.71592283]
[1765091015001,8.26,133.07,133.06,0.7]
[1765091024804,4.16263698,133.08,133.06,0.7]
[1765091025106,8.26,133.07,133.06,0.7]
[1765091026090,115.46855981,133.09,133.06,8.21536275]
[1765091026297,8.26,133.08,133.06,8.21536275]
[1765091026500,8.26,133.08,133.07,0.7]
[1765091027111,104.3,133.09,133.07,0.7]
[1765091027718,104.3,133.09,133.08,7.51427712]
[1765091028215,104.3,133.09,133.08,8.21427712]
[1765091031915,8.26,133.1,133.08,8.21427712]
[1765091035194,8.26,133.1,133.08,0.7]
[1765091035393,11.71263698,133.1,133.08,0.7]
[1765091037825,8.26,133.1,133.08,0.7]
[1765091038027,11.71263698,133.1,133.08,0.7]
[1765091042823,4.17263698,133.09,133.06,7.51540658]
[1765091043024,4.17263698,133.09,133.06,8.18540658]
[1765091043811,4.17263698,133.09,133.07,0.67]
[1765091045116,3.45263698,133.09,133.07,0.67]
[1765091045602,19.94582742,133.1,133.07,0.67]
[1765091045802,27.461234,133.1,133.07,0.67]
[1765091047533,0.72,133.09,133.07,0.67]
[1765091052131,8.24,133.08,133.05,8.38574711]
[1765091052430,11.69263698,133.08,133.05,8.38574711]
[1765091052626,11.68636023,133.09,133.06,4.12263698]
[1765091052933,8.24,133.1,133.06,4.12263698]
[1765091053132,8.24,133.1,133.07,0.67]
[1765091054529,8.24,133.1,133.07,8.18443099]
[1765091054718,8.24,133.1,133.08,0.67]
[1765091055240,20.48150098,133.09,133.05,0.2]
[1765091055536,3.45263698,133.07,133.05,0.2]
[1765091055746,3.45263698,133.07,133.05,0.87]
[1765091056408,0.72,133.06,133.05,0.2]
[1765091056815,12.43263698,133.06,133.05,0.2]
[1765091057007,8.98,133.06,133.05,0.2]
[1765091057232,12.43263698,133.06,133.05,0.2]
[1765091057934,8.98,133.06,133.05,0.2]
[1765091065357,28.75798848,133.06,133.05,0.2]
[1765091065671,37.14505347,133.06,133.05,0.2]
[1765091066656,53.45391747,133.06,133.05,0.2]
[1765091068337,37.14505347,133.06,133.05,0.2]
[1765091074160,37.14505347,133.06,133.04,0.2]
[1765091074363,4.16263698,133.05,133.04,0.2]
[1765091074661,108.46263698,133.05,133.04,0.2]
[1765091074859,111.47343822,133.05,133.04,0.2]
[1765091075332,118.98940965,133.05,133.04,0.2]
[1765091075537,127.79935457,133.05,133.04,0.2]
[1765091076348,126.55868158,133.05,133.04,0.2]
[1765091078970,134.81868158,133.05,133.04,0.2]
[1765091089168,132.60671759,133.05,133.04,0.2]
[1765091089375,134.81868158,133.05,133.04,0.2]
[1765091090573,150.41754558,133.05,133.04,0.2]
[1765091090948,151.09754558,133.05,133.04,0.2]
[1765091092976,139.94558159,133.05,133.04,0.88]
[1765091093157,148.20558159,133.05,133.04,0.88]
[1765091095076,3.01080124,133.05,133.04,0.88]
[1765091095261,15.77535003,133.07,133.04,0.88]
[1765091095455,23.49207484,133.07,133.05,0.69]
[1765091097855,8.26,133.07,133.05,0.69]
[1765091101081,24.02558881,133.08,133.06,2.21196399]
[1765091101292,24.568864,133.08,133.06,2.21196399]
[1765091101479,24.568864,133.08,133.07,0.69]
[1765091102385,8.26,133.08,133.07,0.69]
[1765091102588,8.26,133.08,133.07,2.90196399]
[1765091103366,8.26,133.08,133.07,0.69]
[1765091117189,113.10994492,133.1,133.07,0.69]
[1765091117391,8.26,133.09,133.08,2.21196399]
[1765091117589,8.26,133.09,133.07,10.41675658]
[1765091117790,8.26,133.09,133.08,0.69]
[1765091118486,8.26,133.09,133.08,2.90196399]
[1765091120014,8.26,133.09,133.08,10.41624111]
[1765091122108,8.26,133.09,133.08,8.20427712]
[1765091127927,8.26,133.09,133.08,0.69]
[1765091133207,8.26,133.1,133.08,0.69]
[1765091133405,43.29055546,133.11,133.08,0.69]
[1765091133602,8.24,133.1,133.08,0.69]
[1765091133803,8.92,133.1,133.08,0.69]
[1765091134719,8.24,133.1,133.08,0.69]
[1765091134922,8.24,133.1,133.08,8.20424634]
[1765091136926,8.24,133.1,133.08,0.69]
[1765091138233,8.92,133.1,133.08,0.69]
[1765091139624,15.75327822,133.1,133.05,0.71]
[1765091139814,0.68,133.09,133.06,0.71]
[1765091140015,8.24,133.08,133.06,0.71]
[1765091145348,0.68,133.07,133.04,8.42634111]
[1765091145804,0.68,133.07,133.04,0.91]
[1765091146425,0.68,133.07,133.05,0.71]
[1765091146836,8.24,133.06,133.04,0.91]
[1765091147728,8.24,133.06,133.04,0.2]
[1765091147933,8.24,133.06,133.05,0.71]
[1765091153116,8.24,133.06,133.04,0.86]
[1765091153716,8.24,133.06,133.05,0.66]
[1765091155844,8.24,133.06,133.04,0.86]
[1765091157253,8.9,133.06,133.04,0.86]
[1765091157539,0.66,133.05,133.04,0.2]
[1765091157866,11.82814899,133.05,133.04,0.2]
[1765091158424,11.16814899,133.05,133.04,0.2]
[1765091162656,11.81814899,133.05,133.04,0.2]
[1765091162946,19.33412042,133.05,133.04,0.2]
[1765091165226,18.68412042,133.05,133.04,0.2]
[1765091165546,19.33412042,133.05,133.04,0.2]
[1765091166632,18.68412042,133.05,133.04,0.2]
[1765091168250,19.33412042,133.05,133.04,0.2]
[1765091182561,18.68412042,133.05,133.04,0.2]
[1765091184360,19.40412042,133.05,133.04,0.2]
[1765091186756,22.85538407,133.05,133.04,0.2]
[1765091189161,39.16424807,133.05,133.04,0.2]
[1765091192078,35.71298442,133.05,133.04,0.2]
[1765091195893,39.16424807,133.05,133.04,0.2]
[1765091198554,37.92402264,133.05,133.04,0.2]
[1765091200281,35.71298442,133.05,133.04,0.2]
[1765091200482,37.92402264,133.05,133.04,0.2]
[1765091202264,46.73396756,133.05,133.04,0.2]
[1765091204479,30.42510356,133.05,133.04,0.2]
[1765091205954,46.73396756,133.05,133.04,0.2]
[1765091211589,44.52292934,133.05,133.04,0.2]
[1765091211764,46.73396756,133.05,133.04,0.2]
[1765091217295,44.52292934,133.05,133.04,0.2]
[1765091217488,46.73396756,133.05,133.04,0.2]
[1765091219414,46.73396756,133.05,133.04,0.87]
[1765091219415,43.25298442,133.05,133.04,0.87]
[1765091220710,54.96396756,133.05,133.04,0.2]
[1765091224819,38.65510356,133.05,133.04,0.2]
[1765091226408,36.44406534,133.05,133.04,0.2]
[1765091226603,38.65510356,133.05,133.04,0.2]
[1765091227922,46.01396756,133.05,133.04,0.87]
[1765091228131,54.27396756,133.05,133.04,0.87]
[1765091232125,54.27396756,133.05,133.04,0.2]
[1765091232703,54.96396756,133.05,133.04,0.2]
[1765091232916,54.27396756,133.05,133.04,0.2]
[1765091234958,54.96396756,133.05,133.04,0.2]
[1765091236934,38.65510356,133.05,133.04,0.2]
[1765091244171,129.41880892,133.04,133.03,0.2]
[1765091244334,28.04984714,133.04,133.03,0.2]
[1765091244657,25.11880892,133.03,133.02,0.2]
[1765091244854,36.30984714,133.03,133.02,0.2]
[1765091245353,39.32132841,133.03,133.02,0.2]
[1765091246455,46.83842981,133.03,133.02,0.2]
[1765091248272,44.62739159,133.03,133.02,0.2]
[1765091248443,46.83842981,133.03,133.02,0.2]
[1765091252276,8.80994492,133.02,133.01,0.2]
[1765091252456,11.74098314,133.02,133.01,0.2]
[1765091252977,19.25864965,133.02,133.01,0.2]
[1765091253379,22.27058444,133.02,133.01,0.2]
[1765091255479,24.48162266,133.02,133.0,0.2]
[1765091255663,8.80994492,132.99,132.98,1e-08]
[1765091255862,19.28098314,132.99,132.98,1e-08]
[1765091256061,23.01382538,132.99,132.98,1e-08]
[1765091256674,30.53318773,132.99,132.98,1e-08]
[1765091258187,16.308864,132.97,132.96,0.2]
[1765091258480,35.58984714,132.97,132.96,0.2]
[1765091258684,36.30984714,132.97,132.96,0.2]
[1765091258889,39.32291632,132.97,132.96,0.2]
[1765091260190,39.32291632,132.97,132.96,1e-08]
[1765091260378,48.09358075,132.97,132.96,1e-08]
[1765091263684,8.80994492,132.96,132.95,0.2]
[1765091263990,12.99115423,132.96,132.95,0.2]
[1765091264792,23.52550935,132.96,132.95,0.2]
[1765091265590,20.06430004,132.96,132.95,0.2]
[1765091265782,23.52550935,132.96,132.95,0.2]
[1765091267407,22.80550935,132.96,132.95,0.2]
[1765091267608,22.80550935,132.96,132.95,0.88]
[1765091268299,22.80550935,132.96,132.95,0.2]
[1765091270397,23.52550935,132.96,132.95,0.2]
[1765091274895,23.52550935,132.96,132.95,1e-08]
[1765091280517,25.11880892,132.93,132.91,0.2]
[1765091280820,132.33007331,132.92,132.91,0.87]
[1765091281228,135.34382354,132.92,132.91,0.87]
[1765091281721,142.86714583,132.92,132.91,0.87]
[1765091288144,39.11709075,132.92,132.91,0.67]
[1765091288324,47.37709075,132.92,132.91,0.67]
[1765091290652,39.11709075,132.92,132.91,0.67]
[1765091290955,47.37709075,132.92,132.91,0.67]
[1765091291629,39.11709075,132.92,132.91,0.67]
[1765091291830,47.37709075,132.92,132.91,0.67]
[1765091306861,43.91588144,132.92,132.91,0.67]
[1765091307044,38.56714583,132.92,132.91,0.67]
[1765091307852,18.79707252,132.92,132.91,0.67]
[1765091308060,22.25828183,132.92,132.91,0.67]
[1765091313274,3.01375023,132.92,132.91,0.67]
[1765091313453,8.26,132.93,132.91,0.67]
[1765091315047,118.94515552,132.94,132.91,0.67]
[1765091315254,8.26,132.93,132.91,0.67]
[1765091319780,35.01578062,132.95,132.91,8.19369932]
[1765091319986,8.26,132.94,132.92,3.46120931]
[1765091320168,8.26,132.94,132.92,4.14120931]
[1765091320370,8.26,132.94,132.93,0.68]
[1765091322063,8.26,132.96,132.93,0.68]
[1765091325785,10.47362862,132.96,132.93,0.68]
[1765091329286,8.26,132.96,132.93,0.68]
[1765091334675,10.47362862,132.96,132.93,0.68]
[1765091334881,17.9947038,132.96,132.93,0.68]
[1765091339500,10.47362862,132.96,132.93,8.20264392]
[1765091339703,10.47362862,132.96,132.94,0.69]
[1765091340291,18.69469435,132.96,132.94,0.69]
[1765091340493,2.91362862,132.95,132.91,7.52385006]
[1765091340693,2.91362862,132.95,132.92,0.69]
[1765091340694,10.47362862,132.94,132.92,0.69]
[1765091341888,8.26,132.94,132.92,0.69]
[1765091348427,0.7,132.93,132.91,0.69]
[1765091349015,18.69593112,132.94,132.91,0.69]
[1765091351412,2.21362862,132.96,132.91,10.42745183]
[1765091351608,8.26,132.95,132.91,10.42745183]
[1765091351808,8.26,132.95,132.92,0.69]
[1765091352638,8.26,132.95,132.92,8.21319725]
[1765091352819,8.26,132.95,132.93,0.69]
[1765091354540,18.69541463,132.95,132.92,0.69]
[1765091355237,10.43541463,132.95,132.92,0.69]
[1765091355415,8.26,132.94,132.92,0.69]
[1765091359638,18.69588372,132.94,132.91,0.69]
[1765091367235,10.44530984,132.95,132.91,8.2136312]
[1765091367436,8.26,132.94,132.91,8.2136312]
[1765091367644,8.26,132.94,132.92,0.7]
[1765091369464,8.26,132.94,132.92,8.2232777]
[1765091370266,8.26,132.94,132.92,7.5232777]